bitfinex/quotes_ETHUSD_20240921
["timestamp","ask_amount","ask_price","bid_price","bid_amount"]
[1726932495489,0.0379095,2561.3,2561.2,46.16339904]
[1726932495673,0.0379095,2561.3,2561.2,48.62250079]
[1726932495987,0.0379095,2561.3,2561.2,48.8578261]
[1726932496153,0.0379095,2561.3,2561.2,48.52950897]
[1726932496856,0.0379095,2561.3,2561.2,46.39874115]
[1726932497789,0.0379095,2561.3,2561.2,48.85791782]
[1726932499462,0.0379095,2561.3,2561.2,46.39874115]
[1726932499676,5.06064184,2561.9,2561.8,6.9035]
[1726932499852,2.3336,2562.0,2561.9,3.90335]
[1726932500187,2.3336,2562.0,2561.9,7.31880077]
[1726932500395,2.3336,2562.0,2561.9,42.31880077]
[1726932500597,2.3336,2562.0,2561.9,40.67941021]
[1726932500894,2.3336,2562.0,2561.9,42.31880077]
[1726932501077,2.3336,2562.0,2561.9,40.67941021]
[1726932501248,2.3336,2562.0,2561.9,42.31880077]
[1726932501453,2.3336,2562.0,2561.9,40.67941021]
[1726932502806,2.3336,2562.0,2561.9,42.31880077]
[1726932503315,2.3336,2562.0,2561.9,7.31880077]
[1726932503626,2.3336,2562.0,2561.9,5.67941021]
[1726932503777,2.3336,2562.0,2561.9,7.31880077]
[1726932504220,2.3336,2562.0,2561.9,5.67941021]
[1726932506681,2.3336,2562.0,2561.9,3.96543344]
[1726932506881,2.3336,2562.0,2561.9,5.67941021]
[1726932508019,2.3336,2562.0,2561.9,5.75746443]
[1726932508186,0.0379095,2562.1,2562.0,3.9032]
[1726932508386,0.0379095,2562.1,2562.0,4.04328857]
[1726932509682,0.0379095,2562.1,2562.0,8.68267913]
[1726932510000,0.0379095,2562.1,2562.0,8.60462669]
[1726932510549,0.0379095,2562.1,2562.0,6.96523613]
[1726932510851,0.0379095,2562.1,2562.0,8.68059524]
[1726932511059,0.0379095,2562.1,2562.0,8.6025466]
[1726932511933,0.0379095,2562.1,2562.0,43.6025466]
[1726932512415,0.0379095,2562.1,2562.0,44.12063613]
[1726932513545,0.0379095,2562.1,2562.0,45.75692412]
[1726932513745,0.0379095,2562.1,2562.0,43.60152412]
[1726932515253,0.0379095,2562.1,2562.0,41.96523613]
[1726932515812,2.4555095,2562.1,2562.0,41.96523613]
[1726932516039,2.4555095,2562.1,2562.0,43.6792129]
[1726932516809,0.0379095,2562.1,2562.0,43.6792129]
[1726932518036,2.4555095,2562.1,2562.0,43.6792129]
[1726932519536,2.4555095,2562.1,2562.0,3.96523613]
[1726932520844,2.4555095,2562.1,2562.0,6.96523613]
[1726932521565,2.4555095,2562.1,2562.0,3.96523613]
[1726932521725,2.70106045,2562.1,2562.0,3.96523613]
[1726932524471,2.4555095,2562.1,2562.0,3.96523613]
[1726932529323,2.4555095,2562.1,2562.0,0.06203613]
[1726932529579,2.4555095,2562.1,2562.0,3.96523613]
[1726932538776,2.4555095,2562.1,2562.0,38.96523613]
[1726932541700,2.4555095,2562.1,2562.0,3.96523613]
[1726932544352,2.4555095,2562.1,2562.0,38.96523613]
[1726932546031,2.70106045,2562.1,2562.0,0.06203613]
[1726932546726,2.70106045,2562.1,2562.0,0.06031617]
[1726932546924,2.70106045,2562.1,2561.8,3.90339]
[1726932547140,2.70106045,2562.1,2562.0,0.06031617]
[1726932547339,2.4555095,2562.1,2562.0,3.9032]
[1726932547509,2.4555095,2562.1,2562.0,3.96351617]
[1726932548625,2.4555095,2562.1,2562.0,0.06031617]
[1726932550900,2.4555095,2562.1,2562.0,3.96351617]
[1726932557418,2.4555095,2562.1,2562.0,0.06031617]
[1726932558453,2.70106045,2562.1,2562.0,0.06031617]
[1726932558658,2.70106045,2562.1,2561.8,3.90347]
[1726932559033,2.70106045,2562.1,2561.9,0.06033922]
[1726932559233,2.70106045,2562.1,2561.9,3.96363922]
[1726932559919,2.70106045,2562.1,2561.9,0.06033922]
[1726932560172,3.26460605,2562.0,2561.9,0.06033922]
[1726932560463,7.16780605,2562.0,2561.9,0.06033922]
[1726932560633,2.4445,2561.9,2561.5,3.9039]
[1726932560959,2.4445,2561.9,2561.6,3.90377]
[1726932561324,2.4445,2561.9,2561.5,3.90394]
[1726932561641,0.71678261,2561.8,2561.5,3.90394]
[1726932561841,2.4445,2561.9,2561.5,3.90394]
[1726932564654,0.82010605,2562.0,2561.5,5.61791677]
[1726932564871,0.0379095,2562.1,2562.0,3.9032]
[1726932568052,0.0379095,2562.1,2562.0,3.96171228]
[1726932570740,0.0379095,2562.1,2562.0,6.19517608]
[1726932570946,0.0379095,2562.1,2562.0,6.11711228]
[1726932572151,0.0379095,2562.1,2562.0,6.19516183]
[1726932572556,0.0379095,2562.1,2562.0,41.11711228]
[1726932572764,0.0379095,2562.1,2562.0,42.83108905]
[1726932585817,0.0379095,2562.1,2562.0,41.11711228]
[1726932586015,0.0379095,2562.1,2562.0,42.83108905]
[1726932588981,0.0379095,2562.1,2562.0,41.11711228]
[1726932589194,0.0379095,2562.1,2562.0,42.83108905]
[1726932590618,0.0379095,2562.1,2562.0,3.96171228]
[1726932590619,2.5370095,2562.1,2562.0,3.96171228]
[1726932590823,2.79071045,2562.1,2562.0,3.96171228]
[1726932591039,2.5370095,2562.1,2562.0,3.96171228]
[1726932594505,0.0379095,2562.1,2562.0,3.96171228]
[1726932598203,0.0379095,2562.1,2562.0,4.03976813]
[1726932599238,0.0379095,2562.1,2562.0,3.96171228]
[1726932602846,2.5024095,2562.1,2562.0,3.96171228]
[1726932603012,2.75265045,2562.1,2562.0,3.96171228]
[1726932605047,2.75265045,2562.1,2562.0,0.05851228]
[1726932605416,2.75265045,2562.1,2562.0,3.96171228]
[1726932605857,2.5024095,2562.1,2562.0,3.96171228]
[1726932606058,0.0379095,2562.1,2562.0,3.96171228]
[1726932606357,0.0379095,2562.1,2562.0,6.19516853]
[1726932606652,0.0379095,2562.1,2562.0,6.19516836]
[1726932607056,0.0379095,2562.1,2562.0,6.19516166]
[1726932607259,0.0379095,2562.1,2562.0,41.19516166]
[1726932607564,0.0379095,2562.1,2562.0,41.11711228]
[1726932608024,0.0379095,2562.1,2562.0,44.82558744]
[1726932610460,0.0379095,2562.1,2562.0,42.67018744]
[1726932611051,0.0379095,2562.1,2562.0,7.67018744]
[1726932614559,0.0379095,2562.1,2562.0,7.74824245]
[1726932616645,0.0379095,2562.1,2562.0,9.82558744]
[1726932616883,0.0379095,2562.1,2562.0,7.67018744]
[1726932617259,0.0379095,2562.1,2562.0,7.99829143]
[1726932621948,0.0379095,2562.1,2562.0,7.67018744]
[1726932624092,0.0379095,2562.1,2562.0,42.67018744]
[1726932627991,0.0379095,2562.1,2562.0,40.6735643]
[1726932637814,0.0379095,2562.1,2562.0,44.46525229]
[1726932637987,0.0379095,2562.1,2562.0,44.4672876]
[1726932639708,0.0379095,2562.1,2562.0,46.90021417]
[1726932639913,0.0379095,2562.1,2562.0,45.8289643]
[1726932640567,0.0379095,2562.1,2562.0,46.16453924]
[1726932640772,0.0379095,2562.1,2562.0,47.87639126]
[1726932641015,0.0379095,2562.1,2562.0,45.8289643]
[1726932641309,0.0379095,2562.1,2562.0,47.87640326]
[1726932641697,0.0379095,2562.1,2562.0,45.8289643]
[1726932642507,0.0379095,2562.1,2562.0,46.90021417]
[1726932644369,0.0379095,2562.1,2562.0,46.35483076]
[1726932644571,0.0379095,2562.1,2562.0,45.8289643]
[1726932644884,0.0379095,2562.1,2562.0,47.87518394]
[1726932648656,0.0379095,2562.1,2562.0,45.8289643]
[1726932649313,0.0379095,2562.1,2562.0,47.87441198]
[1726932650112,0.0379095,2562.1,2562.0,48.11314503]
[1726932650813,0.0379095,2562.1,2562.0,48.11320366]
[1726932651711,0.0379095,2562.1,2562.0,46.06769735]
[1726932652495,0.0379095,2562.1,2562.0,47.87465044]
[1726932653361,0.0379095,2562.1,2562.0,48.94590031]
[1726932653638,0.0379095,2562.8,2562.7,3.90213]
[1726932653799,0.0379095,2562.8,2562.7,3.98016481]
[1726932653998,0.0379095,2562.8,2562.7,4.03596186]
[1726932655336,0.0379095,2562.8,2562.7,3.95792705]
[1726932657834,0.0379095,2562.8,2562.7,38.95792705]
[1726932658555,0.0379095,2562.8,2562.7,3.95792705]
[1726932661079,2.3790095,2562.8,2562.7,3.95792705]
[1726932664141,2.9290095,2562.8,2562.7,0.05579705]
[1726932664694,2.3411,2562.7,2562.4,7.80496]
[1726932665591,2.3411,2562.7,2562.5,3.90242]
[1726932665778,2.63400095,2562.6,2562.4,7.80498]
[1726932666097,2.3411,2562.6,2562.4,3.90247]
[1726932666777,2.3411,2562.6,2562.4,7.80496]
[1726932667497,2.3411,2562.6,2562.5,3.90243]
[1726932670305,1.71185202,2562.7,2562.0,3.90306]
[1726932670477,6.30439,2562.4,2561.9,3.9033]
[1726932670680,6.30439,2562.4,2561.8,3.90341]
[1726932670681,2.4018,2562.2,2561.8,3.90341]
[1726932671005,3.90259,2562.4,2561.9,0.05223875]
[1726932671006,2.9518,2562.1,2561.9,0.05223875]
[1726932675127,2.4018,2562.0,2561.9,0.05223875]
[1726932675489,2.4018,2562.0,2561.6,3.90372]
[1726932675827,2.4018,2561.8,2561.6,3.90372]
[1726932676039,2.4018,2561.8,2561.7,3.90365]
[1726932679458,2.4018,2562.4,2562.2,3.90277]
[1726932679617,2.4018,2562.4,2562.2,3.9028]
[1726932680238,2.4018,2562.4,2562.3,3.90274]
[1726932685824,2.4018,2562.4,2562.3,3.95508223]
[1726932694144,2.64198,2562.4,2562.3,3.95508223]
[1726932694467,3.19198,2562.4,2562.3,0.05234223]
[1726932694880,3.19198,2562.4,2562.0,3.90309]
[1726932694881,2.9893,2562.3,2562.0,3.90309]
[1726932696069,2.9893,2562.3,2562.0,3.90307]
[1726932696302,2.9893,2562.3,2562.2,3.90289]
[1726932696566,3.312248,2562.3,2562.2,3.90289]
[1726932697273,2.4393,2562.3,2562.2,3.90289]
[1726932700855,2.4393,2562.3,2562.2,3.95520004]
[1726932712203,2.9893,2562.3,2562.2,0.05231004]
[1726932712603,2.9893,2562.3,2562.0,3.9031]
[1726932712807,2.9893,2562.3,2562.2,0.05242731]
[1726932712980,3.8496672,2562.3,2562.1,0.05243649]
[1726932713374,1.4103672,2562.3,2562.1,0.05243649]
[1726932713585,2.2635,2562.2,2562.1,0.05243649]
[1726932714696,2.2635,2562.2,2561.9,3.90326]
[1726932714897,2.8135,2562.2,2562.1,0.05243649]
[1726932715104,2.2635,2562.1,2562.0,0.05244568]
[1726932715326,2.2635,2562.1,2561.9,7.80649]
[1726932715486,2.2635,2562.1,2562.0,3.9032]
[1726932715688,2.2635,2562.1,2561.9,7.80649]
[1726932715998,2.2635,2562.1,2562.0,0.05244568]
[1726932716197,2.69024391,2562.1,2562.0,0.05244568]
[1726932717481,2.69024391,2562.1,2562.0,3.95564568]
[1726932717705,2.2635,2562.1,2562.0,3.95564568]
[1726932717933,2.2635,2562.1,2562.0,0.05244568]
[1726932718144,2.8135,2562.1,2562.0,0.05244568]
[1726932718819,2.8135,2562.1,2561.9,3.90334]
[1726932719030,2.8135,2562.1,2562.0,0.05257681]
[1726932719332,3.09485,2562.1,2562.0,0.05257681]
[1726932720503,2.54485,2562.1,2562.0,0.05257681]
[1726932720700,2.2635,2562.1,2562.0,0.05257681]
[1726932721200,2.2635,2562.1,2561.7,3.90354]
[1726932721521,2.2635,2562.1,2561.8,0.05259519]
[1726932721885,2.2635,2562.1,2561.7,3.90354]
[1726932722090,2.2635,2562.1,2561.9,0.052586]
[1726932722292,2.2635,2562.1,2561.8,0.05259519]
[1726932722293,0.22635,2562.0,2561.8,0.05259519]
[1726932722486,0.22635,2562.0,2561.7,3.90354]
[1726932723026,0.22635,2562.0,2561.8,3.90349]
[1726932724493,0.22635,2562.0,2561.9,3.90335]
[1726932724696,2.2635,2562.1,2561.9,3.90335]
[1726932725007,2.2635,2562.1,2561.8,3.90342]
[1726932725392,2.2635,2562.1,2561.8,7.80684]
[1726932725592,2.2635,2562.1,2561.9,3.90333]
[1726932725807,2.2635,2562.1,2561.8,7.80681]
[1726932726007,2.2635,2562.1,2561.8,3.90339]
[1726932726232,2.2635,2562.1,2561.8,7.80681]
[1726932726534,2.2635,2562.1,2561.8,3.90339]
[1726932726831,2.2635,2562.1,2561.8,7.80681]
[1726932727042,2.48985,2562.1,2561.8,7.80681]
[1726932727530,2.48985,2562.1,2561.8,3.90339]
[1726932727720,2.48985,2562.1,2561.8,7.80681]
[1726932729068,2.48985,2562.1,2561.9,3.90334]
[1726932730758,3.03985,2562.1,2562.0,0.05284936]
[1726932739375,6.94289,2562.1,2562.0,0.05284936]
[1726932739674,2.3976,2561.9,2561.5,7.80776]
[1726932739878,2.3976,2561.9,2561.5,7.80775]
[1726932740050,2.3976,2561.9,2561.6,0.05113014]
[1726932741257,0.55,2561.8,2561.6,0.05113014]
[1726932741645,0.55,2561.8,2561.4,3.904]
[1726932741846,1.49281562,2561.8,2561.7,0.05112095]
[1726932742070,1.49281562,2561.8,2561.4,3.904]
[1726932742343,1.49281562,2561.8,2561.7,0.05112095]
[1726932742848,1.49281562,2561.8,2561.4,7.80803]
[1726932742849,1.49281562,2561.8,2561.4,3.904]
[1726932743090,1.49281562,2561.8,2561.7,0.05112095]
[1726932743594,1.49281562,2561.8,2561.4,3.904]
[1726932743800,1.49281562,2561.8,2561.5,0.05113933]
[1726932745198,2.3273,2561.6,2561.5,0.05113933]
[1726932745492,2.3273,2561.6,2561.2,7.80865]
[1726932745803,2.3273,2561.6,2561.3,3.90423]
[1726932745956,2.3273,2561.6,2561.4,0.05125898]
[1726932747895,2.3273,2561.6,2561.2,3.90431]
[1726932748200,0.623097,2561.5,2561.2,3.90431]
[1726932748899,2.3273,2561.4,2561.0,4.30458]
[1726932749094,2.3273,2561.4,2561.1,3.90455]
[1726932749601,2.3273,2561.4,2561.2,3.9044]
[1726932750509,2.3273,2561.4,2561.0,4.30458]
[1726932750658,3.0127217,2561.4,2561.0,4.30458]
[1726932750859,3.0127217,2561.4,2561.0,8.20918]
[1726932751602,3.0127217,2561.4,2561.0,4.30458]
[1726932752599,3.0127217,2561.4,2561.0,8.20918]
[1726932752901,3.0127217,2561.4,2561.0,4.30458]
[1726932753103,0.30127217,2561.3,2561.0,8.20921]
[1726932753265,0.30127217,2561.3,2561.0,4.30458]
[1726932753692,0.30127217,2561.3,2561.0,8.20921]
[1726932754089,0.30127217,2561.3,2561.0,4.30458]
[1726932755472,0.30127217,2561.3,2561.0,0.4]
[1726932755473,2.3273,2561.2,2561.0,0.4]
[1726932755688,0.26285722,2561.1,2561.0,0.4]
[1726932756286,2.59015722,2561.1,2561.0,0.4]
[1726932759027,7.04472722,2561.1,2561.0,0.4]
[1726932759172,3.90528,2560.7,2559.7,35.0379095]
[1726932759376,3.90528,2560.7,2560.1,7.81197]
[1726932759377,0.55,2560.5,2560.1,7.81197]
[1726932759570,2.3273,2560.4,2560.0,3.90624]
[1726932759813,4.45579,2560.3,2559.8,2.1554]
[1726932760125,4.45579,2560.3,2559.8,6.06186]
[1726932760279,0.55,2560.1,2559.7,0.0379095]
[1726932760474,2.2667,2560.0,2559.7,0.0379095]
[1726932760680,2.2667,2560.0,2559.8,0.05189296]
[1726932761127,2.2667,2560.0,2559.7,3.9446095]
[1726932761421,2.2667,2560.0,2559.8,0.05189296]
[1726932761576,2.63331942,2560.0,2559.7,3.9445295]
[1726932761773,2.63331942,2560.0,2559.8,0.05189296]
[1726932762120,2.63331942,2560.0,2559.7,3.9445295]
[1726932762293,3.18331942,2560.0,2559.9,0.05188375]
[1726932762491,3.18331942,2560.0,2559.8,0.05189296]
[1726932762492,2.63331942,2560.0,2559.8,0.05189296]
[1726932762796,3.18331942,2560.0,2559.9,0.05188375]
[1726932763003,3.18331942,2560.0,2559.7,3.9445295]
[1726932763512,3.18331942,2560.0,2559.8,0.05189296]
[1726932763815,3.18331942,2560.0,2559.7,3.9445295]
[1726932764022,0.31833194,2559.9,2559.8,0.05189296]
[1726932764186,0.31833194,2559.9,2559.7,0.0379095]
[1726932764385,0.31833194,2559.9,2559.8,0.05189296]
[1726932764587,0.31833194,2559.9,2559.7,0.0379095]
[1726932764777,0.31833194,2559.9,2559.8,0.05240776]
[1726932765108,0.31833194,2559.9,2559.7,0.0379095]
[1726932765316,0.31833194,2559.9,2559.8,0.05240776]
[1726932765717,0.31833194,2559.9,2559.7,0.0379095]
[1726932765877,0.86833194,2559.9,2559.8,0.05240776]
[1726932766313,0.55,2559.8,2559.7,0.0379095]
[1726932767955,0.90016514,2559.8,2559.7,0.0379095]
[1726932773779,3.16686514,2559.8,2559.7,0.0379095]
[1726932775074,0.90016514,2559.8,2559.7,0.0379095]
[1726932775266,0.55,2559.8,2559.7,0.0379095]
[1726932775625,0.55,2559.8,2559.7,0.09042673]
[1726932776025,0.36661942,2560.0,2559.7,2.24582673]
[1726932776244,2.2667,2560.2,2559.8,3.90647]
[1726932776475,2.2667,2560.2,2559.9,0.0529308]
[1726932777066,2.2667,2560.2,2559.7,3.9444995]
[1726932777272,2.2667,2560.2,2560.0,0.05288702]
[1726932777427,0.55,2560.1,2559.7,3.9444995]
[1726932777628,0.28167,2560.0,2559.8,0.05290543]
[1726932777941,0.28167,2560.0,2559.8,3.90653]
[1726932778142,0.28167,2560.0,2559.9,0.05289623]
[1726932778667,0.83167,2560.0,2559.9,0.05289623]
[1726932779470,0.83167,2560.0,2559.7,3.9444995]
[1726932779670,0.83167,2560.0,2559.9,0.05289623]
[1726932779825,0.83167,2560.0,2559.8,0.05290543]
[1726932780022,0.83167,2560.0,2559.7,3.9444995]
[1726932780278,0.83167,2560.0,2559.8,0.05290543]
[1726932780631,0.83167,2560.0,2559.7,3.9444995]
[1726932780973,0.83167,2560.0,2559.8,0.05290543]
[1726932781349,0.83167,2560.0,2559.7,3.9444995]
[1726932781548,0.83167,2560.0,2559.9,0.05289623]
[1726932782068,0.83167,2560.0,2559.7,3.9444995]
[1726932782395,0.83167,2560.0,2559.9,0.05289623]
[1726932782837,0.83167,2560.0,2559.8,3.90652]
[1726932783037,0.83167,2560.0,2559.9,0.05289623]
[1726932784480,0.83167,2560.0,2559.7,0.0379095]
[1726932784656,0.83167,2560.0,2559.9,0.0528824]
[1726932784854,0.83167,2560.0,2559.8,0.0528916]
[1726932785067,0.83167,2560.0,2559.7,3.9445995]
[1726932785380,0.83167,2560.0,2559.9,0.0528824]
[1726932785540,0.83167,2560.0,2559.8,0.0528916]
[1726932785741,0.83167,2560.0,2559.7,3.9445995]
[1726932785742,0.83167,2560.0,2559.9,0.0528824]
[1726932785945,0.83167,2560.0,2559.7,3.9445995]
[1726932786174,0.83167,2560.0,2559.9,0.0528824]
[1726932786382,0.83167,2560.0,2559.8,0.0528916]
[1726932786546,0.83167,2560.0,2559.9,0.0528824]
[1726932786740,0.83167,2560.0,2559.7,3.9445995]
[1726932786946,0.83167,2560.0,2559.9,0.0528824]
[1726932787170,0.83167,2560.0,2559.7,3.9445995]
[1726932787372,0.83167,2560.0,2559.9,0.0528824]
[1726932787567,0.83167,2560.0,2559.8,0.0528916]
[1726932787769,0.83167,2560.0,2559.9,0.0528824]
[1726932788181,0.83167,2560.0,2559.7,3.9445995]
[1726932788480,0.83167,2560.0,2559.8,0.0527948]
[1726932788684,0.83167,2560.0,2559.7,3.9445995]
[1726932788849,0.83167,2560.0,2559.9,0.05154226]
[1726932789050,0.83167,2560.0,2559.7,3.9445995]
[1726932789290,0.83167,2560.0,2559.8,0.05155147]
[1726932789500,0.83167,2560.0,2559.7,3.9445995]
[1726932789652,0.83167,2560.0,2559.9,0.05154226]
[1726932789984,0.55,2559.9,2559.7,0.0379095]
[1726932790285,3.0006,2559.9,2559.7,0.0379095]
[1726932790591,0.878227,2559.8,2559.7,0.0379095]
[1726932791300,7.235377,2559.8,2559.7,0.0379095]
[1726932791588,3.328827,2559.8,2559.7,0.0379095]
[1726932792885,0.878227,2559.8,2559.7,0.0379095]
[1726932793075,0.55,2559.9,2559.7,0.0379095]
[1726932793597,0.54887758,2559.9,2559.7,0.0379095]
[1726932794157,2.4506,2560.4,2560.0,3.90612]
[1726932794356,2.4506,2560.6,2560.3,3.90578]
[1726932794672,2.4506,2560.6,2560.3,3.9057]
[1726932794871,3.086171,2560.6,2560.3,3.9057]
[1726932795570,3.086171,2560.6,2560.1,6.0614]
[1726932795571,0.55,2560.5,2560.1,6.06135]
[1726932796162,0.55,2560.5,2560.2,3.90584]
[1726932796671,0.55,2560.5,2560.1,6.06135]
[1726932798777,0.55,2560.5,2560.2,3.90592]
[1726932798973,7.51124184,2560.9,2560.5,6.0608]
[1726932799177,5.06064184,2560.9,2560.8,3.90502]
[1726932799418,5.06064184,2560.9,2560.7,3.90507]
[1726932799721,5.06064184,2560.9,2560.7,7.81017]
[1726932799921,5.06064184,2560.9,2560.7,3.90507]
[1726932800152,5.06064184,2560.9,2560.5,6.06081]
[1726932800423,5.06064184,2560.9,2560.6,3.90532]
[1726932800879,5.06064184,2560.9,2560.7,3.90517]
[1726932801906,5.06064184,2560.9,2560.7,7.81034]
[1726932802080,5.06064184,2560.9,2560.7,3.90517]
[1726932802416,5.06064184,2560.9,2560.7,3.9051]
[1726932802592,2.4506,2561.1,2560.7,3.9051]
[1726932802793,0.55,2561.0,2560.7,3.9051]
[1726932804149,0.55,2561.0,2560.5,6.06074]
[1726932804365,0.55,2561.0,2560.6,3.90524]
[1726932805753,0.55,2561.0,2560.7,3.95620045]
[1726932806413,0.55,2561.0,2560.8,3.90494]
[1726932806812,0.55,2561.0,2560.9,0.05103206]
[1726932807665,5.06064184,2561.5,2561.0,2.1554]
[1726932807871,5.06064184,2561.5,2561.3,3.90418]
[1726932808220,5.06064184,2561.5,2561.4,3.9550339]
[1726932809328,5.06064184,2561.5,2561.4,0.0509239]
[1726932809534,5.5999219,2561.5,2561.4,0.0509239]
[1726932809952,5.5999219,2561.5,2561.2,3.90441]
[1726932810157,5.5999219,2561.5,2561.4,0.0504092]
[1726932810456,5.5999219,2561.5,2561.2,3.90433]
[1726932810633,8.5581219,2561.5,2561.4,0.0504092]
[1726932810849,0.55,2561.4,2561.3,0.0504184]
[1726932811024,1.79620019,2561.4,2561.0,7.80926]
[1726932811564,1.79620019,2561.4,2561.1,0.05043678]
[1726932812128,1.79620019,2561.4,2561.1,3.95497678]
[1726932812563,1.79620019,2561.4,2561.1,0.05043678]
[1726932820881,5.70038019,2561.4,2561.1,0.05043678]
[1726932821087,0.55,2561.2,2561.1,0.05043678]
[1726932821236,0.55,2561.2,2560.8,2.1554]
[1726932821442,0.55,2561.2,2561.1,0.05054384]
[1726932821663,0.55,2561.2,2560.8,6.06032]
[1726932821865,2.4555,2561.1,2560.5,6.06078]
[1726932822055,0.55,2561.0,2560.9,0.05056223]
[1726932822253,6.36047,2560.9,2560.4,3.90562]
[1726932822543,0.55,2560.8,2560.5,0.04891075]
[1726932822876,0.55,2560.6,2560.5,0.04891075]
[1726932823171,0.55,2560.6,2559.0,38.9455495]
[1726932823172,0.55,2560.6,2560.0,3.90609]
[1726932823380,2.4555,2560.4,2560.0,3.90609]
[1726932823582,0.55,2560.3,2560.0,3.90623]
[1726932825342,0.55,2560.3,2560.0,7.81238]
[1726932825539,2.4555,2560.4,2560.0,3.90615]
[1726932825881,0.69108,2560.5,2560.2,3.9059]
[1726932825882,0.55,2560.5,2560.2,3.9059]
[1726932826688,0.55,2560.5,2560.2,3.90586]
[1726932827685,0.55,2560.5,2560.3,3.90577]
[1726932828095,0.55,2560.5,2560.2,3.90586]
[1726932830127,0.55,2560.5,2560.2,3.90584]
[1726932830303,3.90488,2560.9,2560.2,3.90584]
[1726932830304,3.0,2560.8,2560.2,3.90584]
[1726932830472,0.55,2560.7,2560.4,3.90562]
[1726932830670,0.55,2560.7,2560.3,2.1554]
[1726932831772,0.55,2560.7,2560.3,6.06109]
[1726932835181,1.75119822,2560.7,2560.3,6.06109]
[1726932835812,1.75119822,2560.7,2560.4,0.04570161]
[1726932839023,0.55,2560.7,2560.4,3.95127161]
[1726932840017,0.55,2560.7,2560.5,3.90548]
[1726932840217,2.4555,2560.8,2560.5,5.66445922]
[1726932840522,5.06064184,2561.0,2560.7,3.90518]
[1726932840817,0.74097418,2560.9,2560.8,0.04430494]
[1726932841001,2.3491,2561.1,2560.8,0.04430494]
[1726932841212,2.3491,2561.1,2560.7,3.90518]
[1726932841439,2.3491,2561.1,2560.9,0.04281194]
[1726932841611,2.3491,2561.1,2560.7,3.90518]
[1726932841813,0.55,2561.0,2560.7,3.90518]
[1726932843002,5.39280064,2561.5,2560.9,3.90478]
[1726932843003,9.29686064,2561.5,2560.9,3.90478]
[1726932843204,9.29686064,2561.5,2560.9,7.80957]
[1726932843205,0.55,2561.3,2560.9,7.80957]
[1726932843457,0.55,2561.3,2560.9,3.90478]
[1726932843604,3.27878606,2561.4,2560.9,3.90478]
[1726932844843,2.8991,2561.3,2560.9,3.90478]
[1726932848954,2.8991,2561.3,2561.0,3.90472]
[1726932849119,2.8991,2561.3,2560.9,6.06018]
[1726932849526,2.8991,2561.3,2560.9,3.90478]
[1726932849846,4.06279861,2561.3,2560.9,3.90478]
[1726932850550,4.06279861,2561.3,2560.9,7.80957]
[1726932850751,2.8991,2561.3,2561.0,0.04262311]
[1726932851653,2.8991,2561.3,2561.0,3.94726311]
[1726932852563,0.55,2561.4,2561.1,6.05996]
[1726932852851,5.06064184,2561.8,2561.4,3.90403]
[1726932853054,2.3491,2561.9,2561.4,3.90403]
[1726932853220,3.42583347,2561.9,2561.5,0.04248736]
[1726932854226,0.55,2561.8,2561.5,0.04248736]
[1726932854446,2.3491,2562.1,2561.6,3.90365]
[1726932854668,2.3491,2562.1,2561.8,3.90349]
[1726932854959,2.3491,2562.1,2561.9,0.04245059]
[1726932855165,3.87064918,2562.1,2561.7,3.90359]
[1726932855450,3.87064918,2562.1,2561.8,0.04245978]
[1726932855649,3.87064918,2562.1,2561.7,3.90359]
[1726932855828,3.87064918,2562.1,2561.9,0.04245059]
[1726932856149,3.87064918,2562.1,2562.0,0.04244141]
[1726932856352,4.42064918,2562.1,2561.7,3.90359]
[1726932856522,2.8991,2562.1,2561.8,0.04245978]
[1726932856723,2.8991,2562.1,2561.7,3.90359]
[1726932856945,2.8991,2562.1,2561.8,0.04245978]
[1726932857158,2.8991,2562.1,2561.7,3.90359]
[1726932857455,2.8991,2562.1,2561.8,0.04245978]
[1726932857620,2.8991,2562.1,2561.7,3.90359]
[1726932857955,2.8991,2562.1,2561.8,0.04245978]
[1726932858115,2.8991,2562.1,2561.7,3.90359]
[1726932858547,2.8991,2562.1,2561.8,0.04245978]
[1726932858762,2.8991,2562.1,2561.8,3.9035]
[1726932858931,2.8991,2562.1,2561.9,0.04245059]
[1726932859274,2.8991,2562.1,2561.6,7.80734]
[1726932859275,2.8991,2562.1,2561.7,3.90363]
[1726932859431,2.8991,2562.1,2562.0,0.04244141]
[1726932859622,2.8991,2562.1,2561.7,3.90363]
[1726932860164,2.8991,2562.1,2561.8,0.04245978]
[1726932860368,2.8991,2562.1,2561.7,3.90363]
[1726932860529,2.8991,2562.1,2561.8,0.04245978]
[1726932860725,2.8991,2562.1,2561.7,3.90363]
[1726932860965,2.8991,2562.1,2561.8,0.04245978]
[1726932861172,2.8991,2562.1,2561.7,3.90363]
[1726932861332,2.8991,2562.1,2561.9,0.04245059]
[1726932861532,2.8991,2562.1,2561.7,3.90363]
[1726932861844,2.8991,2562.1,2561.8,0.04245978]
[1726932862031,2.8991,2562.1,2561.7,3.90363]
[1726932862230,2.8991,2562.1,2561.9,0.04245059]
[1726932862431,0.680209,2562.0,2561.6,3.90365]
[1726932862627,2.8991,2562.1,2562.0,0.04244141]
[1726932862858,2.8991,2562.1,2561.7,3.90363]
[1726932863047,2.8991,2562.1,2562.0,0.04244141]
[1726932863371,2.8991,2562.1,2561.7,3.90362]
[1726932863572,2.8991,2562.1,2561.8,0.04245978]
[1726932863750,2.8991,2562.1,2561.7,3.90362]
[1726932864073,2.8991,2562.1,2561.8,0.04245978]
[1726932864233,3.579308,2562.1,2561.7,3.90362]
[1726932864431,3.579308,2562.1,2561.9,0.04245059]
[1726932864652,3.579308,2562.1,2561.7,3.90244797]
[1726932864878,3.579308,2562.1,2562.0,0.04222391]
[1726932865080,3.579308,2562.1,2561.7,3.90244797]
[1726932865674,3.579308,2562.1,2561.8,0.04224228]
[1726932865858,0.7482288,2562.0,2561.7,3.89098338]
[1726932866058,0.7482288,2562.0,2561.9,0.04223309]
[1726932866248,0.7482288,2562.0,2561.7,3.89098338]
[1726932866443,0.7482288,2562.0,2561.9,0.04223309]
[1726932866675,0.7482288,2562.0,2561.7,3.89098338]
[1726932866862,0.7482288,2562.0,2561.9,0.04223309]
[1726932867469,0.7482288,2562.0,2561.8,3.90348]